bitfinex/quotes_SOLUSD_20241213
["timestamp","ask_amount","ask_price","bid_price","bid_amount"]
[1734051976057,12.89662989,226.67,226.61,0.66171566]
[1734051976373,12.89662989,226.65,226.61,0.66171566]
[1734051976580,12.89662989,226.64,226.57,12.89662989]
[1734051976755,12.89662989,226.64,226.58,0.66179941]
[1734051977381,12.89662989,226.65,226.58,13.5584293]
[1734051977586,12.89662989,226.63,226.58,0.66179941]
[1734051978178,12.89662989,226.62,226.53,2.19191959]
[1734051978357,12.89662989,226.6,226.55,23.776884]
[1734051978769,12.89662989,226.58,226.53,2.19191959]
[1734051979583,12.89662989,226.58,226.53,1.5301]
[1734051980378,12.89662989,226.55,226.48,12.89662989]
[1734051980569,12.89662989,226.51,226.47,1.623]
[1734051980762,12.89662989,226.6,226.47,1.623]
[1734051980763,12.89662989,226.52,226.47,1.623]
[1734051981096,1.6062,226.64,226.49,12.89662989]
[1734051981097,12.89662989,226.56,226.49,12.89662989]
[1734051981262,12.89662989,226.56,226.5,0.66200673]
[1734051981578,12.89662989,226.57,226.5,13.55863662]
[1734051981897,12.89662989,226.53,226.48,20.0]
[1734051982185,12.89662989,226.53,226.47,1.623]
[1734051982361,12.89662989,226.53,226.48,0.66209919]
[1734051983266,12.89662989,226.52,226.48,23.776884]
[1734051983876,12.89662989,226.53,226.48,23.776884]
[1734051984085,12.89662989,226.53,226.48,24.43898779]
[1734051985075,12.89662989,226.52,226.47,1.623]
[1734051985274,12.89662989,226.51,226.45,23.776884]
[1734051985674,12.89662989,226.52,226.45,36.67351389]
[1734051985872,12.89662989,226.51,226.44,13.5588143]
[1734051986177,12.89662989,226.48,226.42,14.40372989]
[1734051986757,12.89662989,226.51,226.44,12.89662989]
[1734051986966,12.89662989,226.54,226.47,12.89662989]
[1734051987173,12.89662989,226.54,226.48,0.66210964]
[1734051987879,12.89662989,226.54,226.49,23.776884]
[1734051988669,12.89662989,226.53,226.49,23.776884]
[1734051988865,12.89662989,226.51,226.45,23.776884]
[1734051989075,12.89662989,226.49,226.42,1.5071]
[1734051989271,12.89662989,226.49,226.43,0.66228971]
[1734051989471,12.89662989,226.47,226.43,0.66228971]
[1734051989909,12.89662989,226.46,226.43,0.66228971]
[1734051990060,12.89662989,226.44,226.38,0.66229235]
[1734051990393,12.89662989,226.42,226.38,0.66229235]
[1734051991303,12.89662989,226.39,226.32,1.5997]
[1734051991579,12.89662989,226.37,226.32,1.5997]
[1734051991759,12.89662989,226.36,226.32,1.5997]
[1734051991961,12.89662989,226.37,226.32,1.5997]
[1734051993870,12.89662989,226.36,226.32,1.5997]
[1734051994174,12.89662989,226.35,226.32,1.5997]
[1734051994371,12.89662989,226.34,226.32,1.5997]
[1734051994580,12.89662989,226.33,226.29,0.66261732]
[1734051994989,12.89662989,226.34,226.29,0.66261732]
[1734051995285,12.89662989,226.34,226.28,0.66264723]
[1734051996299,12.89662989,226.31,226.29,23.776884]
[1734051996486,12.89662989,226.38,226.25,2.18965445]
[1734051996487,12.89662989,226.3,226.25,2.18965445]
[1734051996678,12.89662989,226.31,226.25,2.18965445]
[1734051997496,12.89662989,226.3,226.25,2.18965445]
[1734051997670,12.89662989,226.27,226.25,0.66265445]
[1734051998000,12.89662989,226.27,226.21,0.66281257]
[1734051998196,12.89662989,226.31,226.24,12.89662989]
[1734051998501,12.89662989,226.38,226.25,13.55931904]
[1734051998502,12.89662989,226.32,226.25,13.55931904]
[1734051998996,12.89662989,226.32,226.26,23.776884]
[1734051999304,12.89662989,226.36,226.29,13.02211989]
[1734051999482,12.89662989,226.35,226.31,23.776884]
[1734052000403,12.89662989,226.34,226.31,23.776884]
[1734052000607,12.89662989,226.33,226.31,23.776884]
[1734052000967,12.89662989,226.34,226.29,23.776884]
[1734052001410,12.89662989,226.37,226.31,23.776884]
[1734052001572,1.6046,226.43,226.32,0.66253093]
[1734052001573,12.89662989,226.38,226.32,0.66253093]
[1734052001902,12.89662989,226.36,226.33,23.776884]
[1734052002464,6.4188,226.47,226.34,0.66256078]
[1734052002664,12.89662989,226.4,226.35,23.776884]
[1734052002970,12.89662989,226.4,226.37,23.776884]
[1734052004007,12.89662989,226.39,226.37,23.776884]
[1734052004222,12.89662989,226.41,226.37,23.776884]
[1734052004581,12.89662989,226.42,226.37,23.776884]
[1734052005202,20.59385268,226.42,226.37,23.776884]
[1734052005401,20.59385268,226.43,226.37,23.776884]
[1734052005608,20.59385268,226.44,226.38,0.66238513]
[1734052005914,20.59385268,226.45,226.39,23.776884]
[1734052006074,20.59385268,226.45,226.41,23.776884]
[1734052007140,6.1368,226.52,226.41,23.776884]
[1734052007141,20.59385268,226.46,226.41,23.776884]
[1734052007412,20.59385268,226.48,226.43,23.776884]
[1734052008110,20.59385268,226.46,226.43,23.776884]
[1734052008409,20.59385268,226.48,226.44,23.776884]
[1734052008711,20.59385268,226.48,226.43,0.78778668]
[1734052009016,20.59385268,226.48,226.44,23.776884]
[1734052009516,20.59385268,226.49,226.44,23.776884]
[1734052009720,20.59385268,226.48,226.44,23.776884]
[1734052010531,20.59385268,226.49,226.44,23.776884]
[1734052010718,20.59385268,226.51,226.46,23.776884]
[1734052010921,20.59385268,226.53,226.48,23.776884]
[1734052011125,20.59385268,226.53,226.49,0.66207925]
[1734052011421,20.59385268,226.59,226.53,23.776884]
[1734052011632,20.59385268,226.59,226.55,23.776884]
[1734052013017,20.59385268,226.58,226.55,23.776884]
[1734052014014,20.0,226.63,226.51,22.20065268]
[1734052014015,20.59385268,226.56,226.52,23.776884]
[1734052014191,20.0,226.63,226.52,23.776884]
[1734052014192,20.59385268,226.55,226.52,23.776884]
[1734052014999,20.59385268,226.54,226.52,23.776884]
[1734052015209,20.59385268,226.54,226.49,6.83502898]
[1734052015210,20.59385268,226.54,226.5,23.776884]
[1734052015720,20.59385268,226.54,226.49,0.66202898]
[1734052015927,20.59385268,226.54,226.5,20.0]
[1734052016719,20.59385268,226.55,226.48,21.25593426]
[1734052016922,20.59385268,226.55,226.49,23.776884]
[1734052017820,20.59385268,226.55,226.5,0.66206563]
[1734052018025,20.59385268,226.55,226.51,23.776884]
[1734052019625,20.59385268,226.57,226.51,23.776884]
[1734052019799,20.59385268,226.59,226.53,23.776884]
[1734052019995,20.59385268,226.59,226.55,23.776884]
[1734052021020,20.59385268,226.62,226.57,23.776884]
[1734052021194,20.59385268,226.63,226.59,23.776884]
[1734052022624,20.59385268,226.64,226.61,23.776884]
[1734052023809,20.59385268,226.63,226.61,23.776884]
[1734052024516,3.1271795,226.75,226.61,23.776884]
[1734052024517,0.5135055,226.75,226.66,20.12549]
[1734052024733,0.5135055,226.75,226.74,44.37073668]
[1734052025920,0.5135055,226.75,226.74,45.98953668]
[1734052026118,0.5135055,226.75,226.74,51.99653668]
[1734052028224,0.5135055,226.75,226.74,52.6577544]
[1734052029281,0.5135055,226.75,226.74,32.06390172]
[1734052029733,0.5135055,226.75,226.74,52.6577544]
[1734052031299,0.5135055,226.75,226.74,44.88897208]
[1734052033151,0.5135055,226.75,226.74,0.66121772]
[1734052034143,0.5135055,226.75,226.74,13.48628808]
[1734052034648,0.5135055,226.75,226.74,37.26317208]
[1734052035653,0.5135055,226.75,226.74,24.43810172]
[1734052039358,0.5135055,226.75,226.7,2.70106757]
[1734052039359,13.33857586,226.75,226.67,0.66136475]
[1734052039530,12.82507036,226.74,226.67,13.48643511]
[1734052040558,13.33857586,226.75,226.68,12.82507036]
[1734052040745,13.33857586,226.75,226.68,13.4865875]
[1734052041351,12.82507036,226.74,226.69,23.776884]
[1734052041547,13.33857586,226.75,226.69,23.776884]
[1734052041748,0.5135055,226.75,226.69,36.60195436]
[1734052041954,0.5135055,226.75,226.69,37.26345567]
[1734052042258,13.33857586,226.75,226.69,24.43838531]
[1734052042649,12.82507036,226.74,226.69,24.43838531]
[1734052042963,12.82507036,226.74,226.68,23.776884]
[1734052043153,13.33857586,226.75,226.68,36.60195436]
[1734052044361,13.33857586,226.75,226.68,23.776884]
[1734052044656,12.82507036,226.74,226.68,23.776884]
[1734052049264,12.82507036,226.72,226.65,12.82507036]
[1734052049564,12.82507036,226.7,226.63,12.82507036]
[1734052049763,12.82507036,226.69,226.64,0.66169623]
[1734052050539,12.82507036,226.7,226.64,0.66169623]
[1734052052164,12.82507036,226.69,226.64,0.66169623]
[1734052052368,12.82507036,226.69,226.63,0.66167423]
[1734052052554,12.82507036,226.68,226.63,0.66167423]
[1734052052867,12.82507036,226.68,226.62,23.776884]
[1734052053167,12.82507036,226.69,226.64,23.776884]
[1734052054281,12.82507036,226.67,226.6,12.82507036]
[1734052054565,12.82507036,226.65,226.61,23.776884]
[1734052054946,12.82507036,226.64,226.6,0.66176299]
[1734052055269,12.82507036,226.63,226.59,23.776884]
[1734052055573,12.82507036,226.64,226.58,0.66177907]
[1734052056466,12.82507036,226.63,226.58,0.66177907]
[1734052057766,12.82507036,226.6,226.53,13.48691079]
[1734052058152,12.82507036,226.6,226.54,12.82507036]
[1734052058352,12.82507036,226.61,226.55,0.661896]
[1734052060057,12.82507036,226.59,226.53,0.66190839]
[1734052063771,12.82507036,226.57,226.53,0.66190839]
[1734052063984,12.82507036,226.57,226.51,0.66200024]
[1734052064148,12.82507036,226.57,226.51,23.776884]
[1734052064753,12.82507036,226.6,226.53,12.82507036]
[1734052064953,12.82507036,226.6,226.54,13.48697371]
[1734052065157,12.82507036,226.6,226.54,0.66190335]
[1734052065753,12.82507036,226.62,226.56,12.82507036]
[1734052065953,12.82507036,226.63,226.57,0.66182656]
[1734052066167,12.82507036,226.64,226.58,23.776884]
[1734052066364,12.82507036,226.66,226.6,23.776884]
[1734052066553,12.82507036,226.66,226.61,0.66175537]
[1734052067563,12.82507036,226.65,226.61,0.66175537]
[1734052068266,12.82507036,226.66,226.61,0.66175537]
[1734052069581,12.82507036,226.65,226.61,0.66175537]
[1734052070156,12.82507036,226.62,226.52,0.66177477]
[1734052070379,11.15359,226.7,226.52,0.66177477]
[1734052070380,12.82507036,226.61,226.54,12.82507036]
[1734052070567,12.82507036,226.61,226.55,0.66187862]
[1734052071457,12.82507036,226.61,226.56,23.776884]
[1734052071659,12.82507036,226.62,226.57,0.66188444]
[1734052071860,12.82507036,226.66,226.6,23.776884]
[1734052072094,12.82507036,226.67,226.61,0.66172836]
[1734052072964,11.0282,226.69,226.61,0.66172836]
[1734052073163,12.82507036,226.62,226.52,0.66186117]
[1734052073390,12.82507036,226.56,226.51,1.5684]
[1734052073571,12.82507036,226.55,226.51,1.5684]
[1734052073773,12.82507036,226.54,226.48,0.66196208]
[1734052074380,12.82507036,226.55,226.48,13.48703244]
[1734052074672,12.82507036,226.54,226.48,0.66196208]
[1734052075360,12.82507036,226.6,226.47,0.66212903]
[1734052075561,12.82507036,226.51,226.47,0.66212903]
[1734052075780,12.82507036,226.51,226.45,2.32266406]
[1734052076095,23.85777036,226.6,226.45,2.32266406]
[1734052076096,12.82507036,226.5,226.45,2.32266406]
[1734052076293,12.82507036,226.49,226.45,0.66216406]
[1734052076783,12.82507036,226.48,226.43,0.66224936]
[1734052077571,12.82507036,226.47,226.41,0.66229108]
[1734052077787,11.0342,226.57,226.41,0.66229108]
[1734052077788,12.82507036,226.46,226.41,0.66229108]
[1734052078804,6.603,226.54,226.41,20.66229108]
[1734052078805,12.82507036,226.45,226.41,20.66229108]
[1734052078975,12.82507036,226.45,226.41,20.0]
[1734052079176,12.82507036,226.46,226.41,20.0]
[1734052079375,12.82507036,226.45,226.4,2.31157547]
[1734052080501,12.82507036,226.47,226.41,23.776884]
[1734052080680,12.82507036,226.47,226.42,0.6622839]
[1734052081404,12.82507036,226.46,226.42,0.6622839]
[1734052081611,12.82507036,226.46,226.41,23.776884]
[1734052082903,12.82507036,226.45,226.41,20.0]
[1734052083276,12.82507036,226.46,226.41,20.0]
[1734052083677,12.82507036,226.47,226.41,20.0]
[1734052083877,12.82507036,226.47,226.41,20.6623029]
[1734052084296,12.82507036,226.47,226.42,23.776884]
[1734052084505,12.82507036,226.48,226.42,23.776884]
[1734052085507,12.82507036,226.46,226.42,23.776884]
[1734052085681,12.82507036,226.46,226.41,20.0]
[1734052086096,12.82507036,226.46,226.4,20.0]
[1734052086401,12.82507036,226.46,226.41,0.66233673]
[1734052087107,12.82507036,226.47,226.41,0.66233673]
[1734052087701,12.82507036,226.45,226.39,23.776884]
[1734052088011,12.82507036,226.44,226.39,23.776884]
[1734052088507,12.82507036,226.43,226.39,23.776884]
[1734052088698,12.82507036,226.44,226.39,23.776884]
[1734052089501,1.5666,226.51,226.39,23.776884]
[1734052089502,12.82507036,226.45,226.39,23.776884]
[1734052090509,12.82507036,226.44,226.39,23.776884]
[1734052090687,12.82507036,226.42,226.35,14.45487036]
[1734052090899,12.82507036,226.4,226.37,23.776884]
[1734052091087,12.82507036,226.41,226.37,23.776884]
[1734052092018,12.82507036,226.41,226.36,23.776884]
[1734052092221,12.82507036,226.42,226.36,23.776884]
[1734052092702,12.82507036,226.41,226.36,23.776884]
[1734052093899,12.82507036,226.41,226.35,2.29229023]
[1734052094284,12.82507036,226.38,226.33,0.66252215]
[1734052094485,12.82507036,226.38,226.32,0.66260057]
[1734052094684,12.82507036,226.37,226.32,0.66260057]
[1734052094986,12.82507036,226.37,226.3,15.02328156]
[1734052095204,11.0385,226.48,226.31,23.776884]
[1734052095205,12.82507036,226.36,226.31,23.776884]
[1734052095737,12.82507036,226.32,226.27,6.4602]
[1734052095921,12.82507036,226.32,226.27,0.66274327]
[1734052096701,12.82507036,226.29,226.25,2.17686615]
[1734052096884,12.82507036,226.3,226.25,2.17686615]
[1734052097205,12.82507036,226.33,226.26,12.82507036]
[1734052097417,12.82507036,226.32,226.27,0.66272487]
[1734052097797,12.82507036,226.31,226.27,0.66272487]
[1734052097999,12.82507036,226.31,226.28,23.776884]
[1734052098398,12.82507036,226.31,226.26,23.776884]
[1734052099019,12.82507036,226.3,226.26,23.776884]
[1734052099397,12.82507036,226.29,226.25,2.17686405]
[1734052099688,12.82507036,226.28,226.25,1.5141]
[1734052099911,12.82507036,226.29,226.25,21.5141]
[1734052100717,12.82507036,226.28,226.25,21.5141]
[1734052100900,12.82507036,226.3,226.26,23.776884]
[1734052101102,12.82507036,226.31,226.26,24.43963624]
[1734052101424,1.5499,226.41,226.26,24.43963624]
[1734052101425,12.82507036,226.34,226.28,12.82507036]
[1734052101730,12.82507036,226.34,226.3,23.776884]
[1734052102334,12.82507036,226.33,226.3,23.776884]
[1734052102697,12.82507036,226.34,226.3,23.776884]
[1734052102918,12.82507036,226.34,226.28,23.776884]
[1734052103428,12.82507036,226.29,226.22,0.66269186]
[1734052103634,12.82507036,226.25,226.21,6.1387]
[1734052103799,12.82507036,226.24,226.2,1.6561]
[1734052104231,12.82507036,226.25,226.2,1.6561]
[1734052104929,12.82507036,226.25,226.21,20.0]
[1734052106103,12.82507036,226.25,226.22,23.776884]
[1734052106517,12.82507036,226.29,226.22,36.60195436]
[1734052106703,12.82507036,226.29,226.21,20.66291906]
[1734052106704,12.82507036,226.3,226.24,23.776884]
[1734052106910,12.82507036,226.3,226.26,23.776884]
[1734052107303,12.82507036,226.27,226.21,0.66277987]
[1734052107498,11.0443,226.36,226.21,0.66277987]
[1734052107499,12.82507036,226.25,226.21,20.0]
[1734052108128,12.82507036,226.24,226.2,21.6561]
[1734052109009,12.82507036,226.24,226.21,23.776884]
[1734052109815,12.82507036,226.23,226.19,23.776884]
[1734052110119,12.82507036,226.22,226.19,23.776884]
[1734052110305,12.82507036,226.22,226.18,23.776884]
[1734052110930,12.82507036,226.22,226.16,23.776884]
[1734052111314,12.82507036,226.22,226.18,23.776884]
[1734052111946,12.82507036,226.27,226.2,36.60195436]
[1734052112113,12.82507036,226.25,226.2,23.776884]
[1734052112300,12.82507036,226.23,226.18,23.776884]
[1734052112506,12.82507036,226.23,226.17,23.776884]
[1734052113005,12.82507036,226.23,226.19,23.776884]
[1734052113900,12.82507036,226.24,226.19,23.776884]
[1734052115317,12.82507036,226.23,226.19,23.776884]
[1734052115634,12.82507036,226.22,226.17,0.66300011]
[1734052115939,12.82507036,226.21,226.16,23.776884]
[1734052116243,12.82507036,226.2,226.16,23.776884]
[1734052119232,12.82507036,226.21,226.16,23.776884]
[1734052119614,12.82507036,226.22,226.16,23.776884]
[1734052119814,12.5752,226.31,226.16,23.776884]
[1734052119815,12.82507036,226.21,226.16,23.776884]
[1734052120426,12.82507036,226.27,226.16,23.776884]
[1734052120427,12.82507036,226.23,226.18,23.776884]
[1734052121031,12.82507036,226.22,226.18,23.776884]
[1734052121244,1.5281,226.31,226.18,36.60195436]
[1734052121245,20.0,226.3,226.18,36.60195436]
[1734052121424,20.0,226.3,226.2,23.776884]
[1734052121628,12.82507036,226.21,226.15,23.776884]
[1734052121823,12.82507036,226.2,226.15,23.776884]
[1734052122425,12.82507036,226.19,226.15,23.776884]
[1734052122720,12.82507036,226.18,226.15,23.776884]
[1734052123037,12.82507036,226.19,226.15,23.776884]
[1734052124921,12.82507036,226.2,226.15,23.776884]
[1734052127319,8.25383743,226.2,226.15,23.776884]
[1734052131038,8.25383743,226.19,226.15,23.776884]
[1734052131240,8.25383743,226.2,226.15,23.776884]
[1734052131441,8.25383743,226.23,226.17,23.776884]
[1734052131623,8.25383743,226.23,226.18,0.662995]
[1734052131944,8.25383743,226.22,226.16,23.776884]
[1734052132328,8.25383743,226.21,226.16,23.776884]
[1734052132735,8.25383743,226.2,226.16,23.776884]
[1734052134522,8.25383743,226.19,226.16,23.776884]
[1734052135044,33.01534972,226.27,226.16,23.776884]
[1734052135045,8.25383743,226.2,226.16,23.776884]
[1734052135750,8.25383743,226.21,226.16,23.776884]
[1734052136054,8.25383743,226.23,226.18,23.776884]
[1734052137451,8.25383743,226.22,226.18,23.776884]
[1734052137634,8.25383743,226.22,226.17,23.776884]
[1734052137953,8.25383743,226.23,226.19,23.776884]
[1734052138839,8.25383743,226.23,226.18,23.776884]
[1734052140855,8.25383743,226.22,226.16,23.776884]
[1734052141029,8.25383743,226.21,226.16,23.776884]
[1734052141231,8.25383743,226.22,226.16,23.776884]
[1734052141651,8.25383743,226.18,226.14,1.5906]
[1734052141888,8.25383743,226.17,226.11,0.66306447]
[1734052142237,8.25383743,226.15,226.11,0.66306447]
[1734052142532,8.25383743,226.13,226.07,0.6632323]
[1734052142733,8.25383743,226.12,226.07,0.6632323]
[1734052143054,8.25383743,226.09,226.04,1.6342]
[1734052143231,8.25383743,226.08,226.04,1.6342]
[1734052143441,8.25383743,226.06,226.0,8.25383743]
[1734052143643,8.25383743,226.06,225.99,0.66348902]
[1734052143953,8.25383743,226.04,225.99,0.66348902]
[1734052144136,8.25383743,226.04,225.98,1.5126]
[1734052144938,8.25383743,226.04,225.99,23.776884]
[1734052145144,15.0,226.14,225.99,23.776884]
[1734052145343,12.91389019,226.05,225.98,14.42649019]
[1734052146057,12.91389019,226.04,225.98,1.5126]
[1734052146426,12.91389019,226.05,225.98,34.42649019]
[1734052146840,12.91389019,226.05,225.99,23.776884]
[1734052147253,12.91389019,226.04,225.99,23.776884]
[1734052148334,12.91389019,226.04,225.98,23.776884]
[1734052148844,12.91389019,226.05,225.98,36.69077419]
[1734052149849,12.91389019,226.06,226.01,20.0]
[1734052150163,12.49556043,226.15,226.05,23.776884]
[1734052150164,12.91389019,226.11,226.05,23.776884]
[1734052152066,12.91389019,226.11,226.05,24.44029401]
[1734052152266,12.91389019,226.12,226.05,24.44029401]
[1734052152838,12.91389019,226.12,226.05,37.3541842]
[1734052153151,12.91389019,226.14,226.07,36.69077419]
[1734052153853,12.91389019,226.16,226.09,23.776884]
[1734052154053,12.91389019,226.15,226.09,23.776884]
[1734052154264,12.91389019,226.14,226.09,23.776884]
[1734052154442,12.91389019,226.15,226.09,23.776884]
[1734052155259,12.91389019,226.16,226.11,23.776884]
[1734052155461,12.91389019,226.17,226.11,23.776884]
[1734052156666,6.04486043,226.25,226.11,23.776884]
[1734052156667,12.91389019,226.18,226.11,36.69077419]
[1734052156890,12.91389019,226.18,226.11,37.3539667]
[1734052157768,12.91389019,226.18,226.11,36.69077419]
[1734052159067,12.91389019,226.16,226.1,23.776884]
[1734052159241,12.91389019,226.16,226.1,24.44009367]
[1734052159669,12.91389019,226.17,226.1,37.35398386]
[1734052159870,12.91389019,226.18,226.13,20.0]
[1734052160040,12.91389019,226.2,226.14,23.776884]
[1734052160360,12.91389019,226.21,226.14,23.776884]
[1734052160573,12.91389019,226.21,226.15,0.66310466]
[1734052161953,12.91389019,226.2,226.14,23.776884]
[1734052162550,12.91389019,226.19,226.14,23.776884]
[1734052162973,12.91389019,226.19,226.13,23.776884]
[1734052163653,12.91389019,226.2,226.13,37.35391322]
[1734052165273,8.25406861,226.2,226.13,32.69409164]
[1734052165675,8.25406861,226.18,226.13,23.776884]
[1734052165881,8.25406861,226.16,226.09,32.03095261]
[1734052174187,8.25406861,226.16,226.09,23.776884]
[1734052175582,8.25406861,226.16,226.09,8.25406861]
[1734052175982,0.25098,226.2,226.1,23.776884]
[1734052176175,8.25406861,226.15,226.1,23.776884]
[1734052176375,8.25406861,226.16,226.1,23.776884]
[1734052176856,0.25098,226.2,226.09,0.66326883]
[1734052177061,8.25406861,226.1,226.04,1.539]
[1734052177288,8.25406861,226.07,226.04,1.539]
[1734052177968,0.25098,226.15,226.01,8.91758772]
[1734052178161,8.25406861,226.08,226.01,8.91758772]
[1734052178766,8.25406861,226.07,225.99,2.17637656]
[1734052178976,8.25406861,226.07,226.0,8.25406861]
[1734052179261,8.25406861,226.07,226.02,23.776884]
[1734052180100,8.25406861,226.05,226.01,0.66352197]
[1734052180405,8.25406861,226.02,225.99,1.5129]
[1734052180761,8.25406861,226.02,225.96,0.5135055]
[1734052181368,8.25406861,226.0,225.96,0.5135055]
[1734052182265,8.25406861,225.99,225.96,0.5135055]
[1734052182601,8.25406861,226.0,225.96,0.5135055]
[1734052182976,0.12549,226.07,225.96,0.5135055]
[1734052183172,8.25406861,226.01,225.96,0.5135055]
[1734052184070,8.25406861,226.0,225.96,0.5135055]
[1734052184268,8.25406861,225.98,225.96,0.5135055]
[1734052185106,8.25406861,225.97,225.96,0.5135055]
[1734052193139,8.25406861,225.99,225.96,0.5135055]
[1734052193307,23.776884,226.04,225.96,0.5135055]
[1734052193623,8.25406861,226.0,225.96,0.5135055]
[1734052194712,23.776884,226.04,225.96,0.5135055]
[1734052194713,32.03095261,225.97,225.96,0.5135055]
[1734052195121,8.25406861,225.88,225.87,1.5129]
[1734052196019,23.776884,225.96,225.87,1.5129]
[1734052196196,8.25406861,225.89,225.87,1.5129]
[1734052196391,0.12549,226.02,225.87,1.5129]
[1734052196592,8.25406861,225.93,225.87,2.17680418]
[1734052197504,8.25406861,225.88,225.82,1.6258]
[1734052197704,8.25406861,225.87,225.82,2.28978123]
[1734052198024,8.25406861,225.88,225.82,2.28978123]
[1734052198228,23.776884,225.97,225.82,10.54384984]
[1734052198436,8.25406861,225.9,225.83,8.25406861]
[1734052198605,8.25406861,225.9,225.84,0.6639382]
[1734052199736,8.25406861,225.89,225.84,20.6639382]
[1734052199921,8.25406861,225.88,225.84,20.6639382]
[1734052200595,8.25406861,225.87,225.84,20.6639382]
[1734052200813,8.25406861,225.87,225.82,2.28981791]
[1734052201017,8.25406861,225.88,225.83,20.0]
[1734052201209,8.25406861,225.88,225.84,0.66400245]
[1734052201901,8.25406861,225.88,225.84,20.66400245]
[1734052202511,8.25406861,225.88,225.84,0.66400245]
[1734052202705,23.776884,225.97,225.84,8.25406861]
[1734052202913,8.25406861,225.89,225.83,20.66402313]
[1734052203230,33.01627444,225.94,225.83,20.66402313]
[1734052203231,8.25406861,225.88,225.83,20.66402313]
[1734052203439,8.25406861,225.86,225.82,1.6258]
[1734052204920,33.01627444,225.94,225.82,1.6258]
[1734052204921,8.25406861,225.85,225.82,1.6258]
[1734052205215,8.25406861,225.84,225.77,9.75456861]
[1734052206537,23.776884,225.93,225.8,8.25406861]
[1734052206734,8.25406861,225.87,225.81,0.66405767]
[1734052206908,8.25406861,225.88,225.81,8.91812628]
[1734052207103,8.25406861,225.87,225.81,0.66405767]
[1734052207605,8.25406861,225.82,225.77,1.5005]
[1734052207802,8.25406861,225.81,225.77,1.5005]
[1734052208243,8.25406861,225.82,225.77,1.5005]
[1734052208446,23.776884,225.9,225.77,2.16472143]
[1734052208659,8.25406861,225.84,225.77,10.41879004]
[1734052209521,8.25406861,225.83,225.77,2.16472143]
[1734052209833,8.25406861,225.84,225.77,10.41879004]
[1734052210013,8.25406861,225.83,225.77,2.16472143]
[1734052211146,8.25406861,225.82,225.77,2.16472143]
[1734052211861,5.28934025,225.91,225.78,28.25406861]
[1734052212011,8.25406861,225.85,225.79,0.66408124]
[1734052212209,5.83332154,225.95,225.79,0.66408124]
[1734052212210,1.5676,225.98,225.83,8.25406861]
[1734052212410,1.5676,225.98,225.84,0.66397023]
[1734052212607,8.25406861,225.87,225.83,20.0]
[1734052213037,8.25406861,225.86,225.83,20.0]
[1734052213416,8.25406861,225.86,225.82,20.66400649]
[1734052213719,8.25406861,225.83,225.74,0.5135055]
[1734052213914,8.25406861,225.78,225.74,0.5135055]
[1734052214441,11.47086802,225.9,225.74,0.5135055]
[1734052214442,8.25406861,225.79,225.74,0.5135055]
[1734052214742,11.47086802,225.9,225.74,0.5135055]
[1734052214743,8.25406861,225.8,225.75,0.6642444]
[1734052215417,8.25406861,225.8,225.76,20.0]
[1734052215818,8.25406861,225.79,225.76,20.0]
[1734052216907,5.10654932,225.94,225.79,20.0]
[1734052217113,6.6378,225.97,225.8,10.50788115]
[1734052217538,8.25406861,225.87,225.8,10.50788115]
[1734052218041,8.25406861,225.86,225.82,20.0]
[1734052218537,8.25406861,225.84,225.81,20.0]
[1734052218730,8.25406861,225.83,225.8,2.25381254]
[1734052218929,8.25406861,225.83,225.8,1.5897]
[1734052220025,8.25406861,225.84,225.8,1.5897]
[1734052220223,8.25406861,225.85,225.8,2.253803]
[1734052220421,33.01627444,225.94,225.8,2.253803]
[1734052220422,8.25406861,225.86,225.8,2.253803]
[1734052221138,8.25406861,225.84,225.8,2.253803]
[1734052221319,8.25406861,225.84,225.8,1.5897]
[1734052222046,23.776884,225.93,225.8,1.5897]
[1734052222625,8.25406861,225.84,225.8,1.5897]
[1734052224352,8.25406861,225.81,225.74,2.0720055]
[1734052224521,1.6469,225.89,225.74,2.0720055]
[1734052224522,8.25406861,225.78,225.74,2.0720055]
[1734052227148,8.25406861,225.78,225.74,0.5135055]
[1734052227445,8.25406861,225.76,225.74,0.5135055]
[1734052229236,8.25406861,225.75,225.74,0.5135055]
[1734052230522,23.776884,225.82,225.74,0.5135055]
[1734052230724,8.25406861,225.75,225.74,0.5135055]
[1734052231821,1.6293,225.79,225.74,0.5135055]
[1734052232027,8.25406861,225.78,225.74,0.5135055]
[1734052233252,8.25406861,225.77,225.74,0.5135055]
[1734052233641,8.25406861,225.78,225.74,0.5135055]
[1734052234525,8.25406861,225.77,225.74,0.5135055]
[1734052235355,8.25406861,225.81,225.75,0.66435559]
[1734052235762,8.25406861,225.82,225.75,8.9184242]
[1734052236068,8.25406861,225.83,225.76,8.25406861]
[1734052236236,7.9032,225.91,225.77,0.66417746]